bitfinex/quotes_SOLUSD_20250616
["timestamp","ask_amount","ask_price","bid_price","bid_amount"]
[1750117117617,64.89777761,152.73,152.72,71.03775452]
[1750117118620,93.91168879,152.73,152.69,7.08]
[1750117118824,35.93777761,152.7,152.69,13.62921736]
[1750117118996,64.89777761,152.7,152.69,13.62921736]
[1750117120126,64.89777761,152.7,152.69,7.08]
[1750117120700,65.18210075,152.7,152.69,7.08]
[1750117121299,64.89777761,152.7,152.69,13.62921736]
[1750117122311,65.18210075,152.7,152.69,7.08]
[1750117125330,65.18210075,152.7,152.69,13.62921736]
[1750117125331,64.89777761,152.7,152.69,13.62921736]
[1750117126045,54.96,152.7,152.69,13.62921736]
[1750117126335,64.89777761,152.7,152.69,13.62921736]
[1750117127802,64.89777761,152.7,152.69,7.08]
[1750117128109,64.89777761,152.7,152.69,13.62921736]
[1750117130201,64.89777761,152.7,152.69,7.08]
[1750117130406,65.18210075,152.7,152.69,7.08]
[1750117130910,65.18210075,152.7,152.69,13.62921736]
[1750117131935,65.18210075,152.7,152.69,7.08]
[1750117134923,65.18210075,152.7,152.64,16.37814502]
[1750117134924,65.18210075,152.7,152.68,6.54960293]
[1750117135114,9.93777761,152.69,152.68,6.54960293]
[1750117136017,9.93777761,152.69,152.65,6.5509335]
[1750117136325,9.93777761,152.67,152.65,6.5509335]
[1750117136525,28.96,152.66,152.65,6.5509335]
[1750117136721,38.89777761,152.66,152.63,58.39145747]
[1750117136924,9.93777761,152.64,152.63,6.55145747]
[1750117137127,28.96,152.64,152.63,6.55145747]
[1750117137307,26.0,152.67,152.63,22.93093725]
[1750117137308,28.96,152.65,152.63,22.93093725]
[1750117137515,28.96,152.65,152.63,6.55145747]
[1750117137516,9.93777761,152.64,152.63,6.55145747]
[1750117137748,28.96,152.65,152.63,6.55145747]
[1750117137921,9.93777761,152.64,152.63,6.55145747]
[1750117140450,35.93777761,152.64,152.62,13.65214676]
[1750117140657,8.1603,152.69,152.62,13.65214676]
[1750117140833,165.45157761,152.73,152.64,9.93777761]
[1750117141166,9.93777761,152.71,152.66,9.93777761]
[1750117141344,28.96,152.7,152.67,6.55007532]
[1750117141660,157.34872314,152.73,152.69,9.93777761]
[1750117141661,1.5506,152.73,152.69,9.93777761]
[1750117141864,7.9644,152.77,152.71,9.93777761]
[1750117142069,38.89777761,152.76,152.71,9.93777761]
[1750117142237,54.96,152.75,152.71,9.93777761]
[1750117142434,26.0,152.74,152.72,9.93777761]
[1750117142631,26.0,152.75,152.71,9.93777761]
[1750117142833,28.96,152.74,152.71,9.93777761]
[1750117143035,54.96,152.74,152.7,17.03777761]
[1750117143262,64.89777761,152.74,152.71,6.54835963]
[1750117143768,26.0,152.74,152.71,22.91925871]
[1750117143935,26.0,152.74,152.71,32.85703632]
[1750117144135,26.0,152.74,152.71,22.91925871]
[1750117144367,35.93777761,152.74,152.71,22.91925871]
[1750117144771,26.0,152.74,152.71,22.91925871]
[1750117144934,64.89777761,152.75,152.71,22.91925871]
[1750117145139,9.93777761,152.73,152.71,22.91925871]
[1750117145340,38.89777761,152.73,152.71,6.54835963]
[1750117145559,28.96,152.73,152.71,6.54835963]
[1750117145970,38.89777761,152.73,152.71,6.54835963]
[1750117146268,28.96,152.73,152.71,6.54835963]
[1750117146968,38.89777761,152.73,152.71,6.54835963]
[1750117147771,9.93777761,152.72,152.71,6.54835963]
[1750117147980,28.96,152.73,152.71,6.54835963]
[1750117148152,9.93777761,152.72,152.71,6.54835963]
[1750117148352,38.89777761,152.73,152.71,6.54835963]
[1750117148947,9.93777761,152.73,152.71,6.54835963]
[1750117149143,28.96,152.72,152.71,6.54835963]
[1750117149596,26.0,152.75,152.71,6.54835963]
[1750117149772,28.96,152.74,152.71,16.48613724]
[1750117150048,38.89777761,152.74,152.71,22.91925871]
[1750117150447,9.93777761,152.73,152.71,22.91925871]
[1750117150681,38.89777761,152.74,152.71,22.91925871]
[1750117151053,9.93777761,152.73,152.71,22.91925871]
[1750117151272,9.93777761,152.73,152.71,6.54835963]
[1750117151590,9.93777761,152.73,152.7,7.1]
[1750117151591,64.89777761,152.72,152.7,7.1]
[1750117151749,36.22210075,152.71,152.7,13.64878847]
[1750117152277,36.22210075,152.71,152.7,7.1]
[1750117152673,55.01391118,152.71,152.7,7.1]
[1750117153152,55.01391118,152.71,152.64,7.08]
[1750117153355,9.93777761,152.66,152.65,6.5509335]
[1750117153554,38.87777761,152.66,152.65,6.5509335]
[1750117154064,28.94,152.66,152.65,6.5509335]
[1750117155274,38.87777761,152.66,152.65,6.5509335]
[1750117155684,38.87777761,152.67,152.65,6.5509335]
[1750117156184,28.94,152.67,152.65,6.5509335]
[1750117156396,9.93777761,152.7,152.66,9.93777761]
[1750117156553,28.94,152.71,152.69,9.93777761]
[1750117156950,28.94,152.72,152.69,9.93777761]
[1750117157270,28.94,152.72,152.66,9.93777761]
[1750117157472,9.93777761,152.71,152.67,22.92526363]
[1750117157668,38.87777761,152.72,152.68,9.93777761]
[1750117157858,9.93777761,152.71,152.67,32.86304124]
[1750117158771,9.93777761,152.7,152.68,7.08]
[1750117159356,9.93777761,152.7,152.69,6.54921736]
[1750117159568,38.87777761,152.71,152.69,6.54921736]
[1750117159882,35.93777761,152.7,152.66,7.08]
[1750117160055,9.93777761,152.67,152.66,7.08]
[1750117160256,28.94,152.67,152.66,7.08]
[1750117160672,38.87777761,152.67,152.66,7.08]
[1750117161583,38.87777761,152.67,152.66,13.63050438]
[1750117161754,64.87777761,152.67,152.66,7.08]
[1750117161953,65.16210075,152.67,152.66,7.08]
[1750117164183,59.53541118,152.67,152.66,7.08]
[1750117165468,1.5815,152.67,152.66,7.08]
[1750117165668,6.5877,152.69,152.66,13.63050438]
[1750117165856,28.94,152.68,152.66,30.00676535]
[1750117166064,26.0,152.69,152.66,30.00676535]
[1750117166262,1.5815,152.71,152.66,30.00676535]
[1750117166482,9.93777761,152.72,152.67,9.93777761]
[1750117166784,9.93777761,152.72,152.66,30.00676535]
[1750117166785,16.52547761,152.73,152.68,9.93777761]
[1750117167104,16.52547761,152.73,152.66,62.75928729]
[1750117167105,28.94,152.72,152.69,9.93777761]
[1750117167662,9.93777761,152.73,152.66,62.75928729]
[1750117167859,28.94,152.72,152.66,62.75928729]
[1750117168390,1.5815,152.75,152.66,62.75928729]
[1750117168597,9.93777761,152.73,152.66,62.75928729]
[1750117168789,28.94,152.72,152.66,62.75928729]
[1750117170110,38.87777761,152.72,152.68,9.93777761]
[1750117170899,28.94,152.72,152.68,9.93777761]
[1750117172142,28.94,152.72,152.69,22.92226078]
[1750117172897,26.0,152.73,152.69,32.86003839]
[1750117173196,28.92,152.72,152.69,32.86003839]
[1750117173786,54.92,152.73,152.69,32.86003839]
[1750117174084,54.92,152.73,152.71,6.54835963]
[1750117175174,26.0,152.73,152.71,6.54835963]
[1750117175380,54.92,152.73,152.71,6.54835963]
[1750117175801,64.85777761,152.73,152.71,6.54835963]
[1750117176017,54.92,152.73,152.71,6.54835963]
[1750117176193,1.5815,152.75,152.71,6.54835963]
[1750117176393,2.42439051,152.79,152.74,9.93777761]
[1750117176611,9.93777761,152.77,152.75,7.06]
[1750117176816,9.93777761,152.76,152.75,7.06]
[1750117177522,9.93777761,152.76,152.75,13.60664484]
[1750117177713,28.92,152.76,152.75,13.60664484]
[1750117178833,38.85777761,152.76,152.75,13.60664484]
[1750117179209,26.0,152.73,152.68,7.06]
[1750117179424,9.93777761,152.71,152.69,6.54921736]
[1750117179600,38.83777761,152.72,152.69,6.54921736]
[1750117179799,28.9,152.72,152.69,6.54921736]
[1750117180006,28.9,152.72,152.69,22.92226078]
[1750117180206,38.83777761,152.72,152.69,22.92226078]
[1750117182900,9.93777761,152.71,152.69,22.92226078]
[1750117183111,38.83777761,152.7,152.69,6.54921736]
[1750117183306,9.93777761,152.71,152.69,6.54921736]
[1750117183614,28.9,152.7,152.69,22.92226078]
[1750117183815,9.93777761,152.7,152.69,6.54921736]
[1750117184709,35.93777761,152.7,152.69,6.54921736]
[1750117186027,26.0,152.68,152.67,6.55007532]
[1750117186329,64.83777761,152.68,152.67,6.55007532]
[1750117186531,28.9,152.68,152.67,6.55007532]
[1750117186909,38.83777761,152.68,152.66,7.06]
[1750117187125,35.93777761,152.67,152.66,7.06]
[1750117187330,36.22210075,152.67,152.66,7.06]
[1750117187937,44.36170075,152.67,152.6,13.61307994]
[1750117188127,9.93777761,152.62,152.6,13.61307994]
[1750117188326,38.83777761,152.62,152.6,13.61307994]
[1750117188530,9.93777761,152.61,152.6,6.55307994]
[1750117189829,9.93777761,152.61,152.59,65.49347863]
[1750117190136,38.83777761,152.6,152.59,13.61347863]
[1750117190820,38.83777761,152.6,152.59,13.6135094]
[1750117191518,28.9,152.6,152.59,13.6135094]
[1750117192231,28.88,152.61,152.59,13.6135094]
[1750117194625,28.88,152.61,152.59,23.55128701]
[1750117194844,9.93777761,152.66,152.6,9.93777761]
[1750117195156,28.88,152.65,152.59,29.99728291]
[1750117195322,9.93777761,152.66,152.62,9.93777761]
[1750117195523,0.14216157,152.71,152.63,9.93777761]
[1750117195524,9.93777761,152.68,152.63,9.93777761]
[1750117195739,28.88,152.67,152.63,9.93777761]
[1750117195922,38.81777761,152.67,152.63,9.93777761]
[1750117196252,38.81777761,152.67,152.62,9.93777761]
[1750117196433,9.93777761,152.66,152.61,9.93777761]
[1750117196634,9.93777761,152.65,152.6,9.93777761]
[1750117197037,9.93777761,152.65,152.61,9.93777761]
[1750117197741,9.93777761,152.65,152.62,6.5522212]
[1750117197938,28.88,152.66,152.62,6.5522212]
[1750117198255,26.0,152.68,152.62,22.9327742]
[1750117198551,35.93777761,152.68,152.64,9.93777761]
[1750117198717,28.88,152.67,152.63,9.93777761]
[1750117198919,38.81777761,152.67,152.63,9.93777761]
[1750117199847,28.88,152.67,152.64,22.92976938]
[1750117200048,38.81777761,152.67,152.64,22.92976938]
[1750117201647,28.88,152.67,152.64,22.92976938]
[1750117201848,38.81777761,152.67,152.65,7.06]
[1750117202652,9.93777761,152.66,152.65,7.06]
[1750117202846,55.01391118,152.66,152.65,7.06]
[1750117203152,26.0,152.61,152.59,7.02]
[1750117203358,38.79777761,152.6,152.59,7.02]
[1750117204123,38.79777761,152.6,152.59,13.5735094]
[1750117205254,28.86,152.6,152.59,13.5735094]
[1750117207225,38.79777761,152.6,152.59,13.5735094]
[1750117207552,39.08210075,152.6,152.59,7.02]
[1750117209683,57.87391118,152.6,152.59,7.02]
[1750117211552,27.94402314,152.58,152.57,64.48982367]
[1750117211761,27.94402314,152.58,152.57,71.04419215]
[1750117211762,66.74180075,152.58,152.57,71.04419215]
[1750117211971,66.45747761,152.58,152.57,71.04419215]
[1750117212734,56.5197,152.58,152.57,71.04419215]
[1750117212953,66.45747761,152.58,152.57,64.48982367]
[1750117213269,66.74180075,152.58,152.57,64.48982367]
[1750117213779,26.0,152.54,152.53,7.02]
[1750117214067,64.79777761,152.54,152.53,7.02]
[1750117214666,64.79777761,152.54,152.53,13.57608732]
[1750117215473,35.93777761,152.54,152.53,13.57608732]
[1750117215769,64.79777761,152.54,152.53,13.57608732]
[1750117215970,28.86,152.54,152.53,13.57608732]
[1750117216771,1.6597,152.58,152.53,23.51386493]
[1750117216989,7.7273,152.62,152.53,62.74674226]
[1750117217162,9.93777761,152.61,152.56,9.93777761]
[1750117217682,28.86,152.6,152.57,9.93777761]
[1750117218345,9.93777761,152.62,152.59,6.5535094]
[1750117218683,28.84,152.61,152.59,6.5535094]
[1750117220380,9.93777761,152.6,152.56,6.55479811]
[1750117220579,9.93777761,152.58,152.56,6.55479811]
[1750117220775,38.77777761,152.58,152.56,6.55479811]
[1750117221274,28.84,152.58,152.56,16.49257572]
[1750117221456,26.0,152.62,152.57,9.93777761]
[1750117221764,9.93777761,152.59,152.56,22.94179339]
[1750117221969,38.77777761,152.59,152.56,22.94179339]
[1750117222346,9.93777761,152.58,152.56,22.94179339]
[1750117222545,9.93777761,152.58,152.56,16.38699528]
[1750117222770,28.84,152.57,152.56,16.38699528]
[1750117223276,38.77777761,152.57,152.55,6.55522779]
[1750117223447,9.93777761,152.56,152.55,6.55522779]
[1750117224557,9.93777761,152.56,152.54,6.55565753]
[1750117224757,38.77777761,152.55,152.54,6.55565753]
[1750117225282,64.77777761,152.55,152.54,6.55565753]
[1750117225464,38.77777761,152.55,152.54,6.55565753]
[1750117225974,0.28432314,152.59,152.54,6.55565753]
[1750117225975,9.93777761,152.59,152.54,32.88257897]
[1750117226154,15.94647761,152.64,152.58,9.93777761]
[1750117226155,7.6084,152.64,152.58,9.93777761]
[1750117226355,9.93777761,152.62,152.58,9.93777761]
[1750117226547,28.84,152.61,152.59,6.5535094]
[1750117226749,38.77777761,152.61,152.6,7.02]
[1750117227950,39.06210075,152.61,152.6,7.02]
[1750117228278,38.77777761,152.61,152.6,7.02]
[1750117228761,38.77777761,152.61,152.6,13.57307994]
[1750117229354,28.84,152.61,152.6,13.57307994]
[1750117229577,64.77777761,152.61,152.6,13.57307994]
[1750117232381,65.06210075,152.61,152.6,7.02]
[1750117234977,83.85391118,152.61,152.6,7.02]
[1750117235369,26.0,152.58,152.54,6.98]
[1750117235571,9.93777761,152.55,152.54,6.98]
[1750117235774,38.75777761,152.55,152.54,6.98]
[1750117235952,28.82,152.55,152.54,13.53565753]
[1750117236159,38.75777761,152.55,152.54,13.53565753]
[1750117236755,73.84880408,152.55,152.54,6.98]
[1750117236974,73.99096565,152.55,152.54,6.98]
[1750117237373,64.05318804,152.55,152.54,6.98]
[1750117237858,73.99096565,152.55,152.54,6.98]
[1750117238062,74.27528879,152.55,152.54,6.98]
[1750117238866,26.0,152.52,152.48,6.98]
[1750117239079,9.93777761,152.49,152.48,6.98]
[1750117239281,28.8,152.49,152.48,6.98]
[1750117240098,9.93777761,152.55,152.48,16.91777761]
[1750117240296,9.93777761,152.56,152.51,9.93777761]
[1750117240598,35.93777761,152.56,152.51,9.93777761]
[1750117240897,28.8,152.57,152.54,22.94480136]
[1750117241198,35.93777761,152.58,152.55,6.98]
[1750117241367,28.8,152.57,152.55,16.91777761]
[1750117241567,35.93777761,152.59,152.55,6.98]
[1750117241765,6.54867682,152.71,152.58,0.9357]
[1750117241971,9.93777761,152.63,152.59,6.98]
[1750117242193,9.93777761,152.62,152.59,6.98]
[1750117242486,9.93777761,152.6,152.59,6.98]
[1750117242892,38.73777761,152.61,152.59,6.98]
[1750117243188,28.8,152.61,152.6,6.55307994]
[1750117243593,38.73777761,152.61,152.6,6.55307994]
[1750117243802,64.73777761,152.61,152.58,6.98]
[1750117244002,9.93777761,152.59,152.58,6.98]
[1750117244175,64.73777761,152.59,152.58,6.98]
[1750117245203,64.73777761,152.59,152.58,13.53393891]
[1750117246183,64.73777761,152.59,152.58,6.98]
[1750117246578,57.81391118,152.59,152.58,6.98]
[1750117246779,56.05593357,152.59,152.58,6.98]
[1750117247004,37.26412314,152.59,152.58,6.98]
[1750117247252,65.02210075,152.59,152.58,13.53393891]
[1750117248001,57.81391118,152.59,152.58,6.98]
[1750117248973,39.02210075,152.59,152.58,6.98]
[1750117250670,39.02210075,152.59,152.58,13.53393891]
[1750117250896,38.73777761,152.59,152.58,13.53393891]
[1750117251116,64.73777761,152.59,152.58,6.98]
[1750117252193,65.00210075,152.59,152.58,6.98]
[1750117253509,65.00210075,152.59,152.58,13.53393891]
[1750117253692,65.00210075,152.59,152.58,6.98]
[1750117254311,83.79391118,152.59,152.58,6.98]
[1750117256010,73.85613357,152.59,152.58,6.98]
[1750117256215,83.79391118,152.59,152.58,6.98]
[1750117258429,54.78,152.59,152.58,13.53393891]
[1750117258603,6.08846476,152.69,152.58,78.71185839]
[1750117258800,9.93777761,152.68,152.58,68.77408078]
[1750117259103,9.93777761,152.68,152.63,9.93777761]
[1750117259104,28.78,152.67,152.63,9.93777761]
[1750117259314,38.71777761,152.67,152.62,9.93777761]
[1750117259514,26.0,152.66,152.62,9.93777761]
[1750117259703,28.78,152.65,152.62,9.93777761]
[1750117259911,26.0,152.66,152.62,9.93777761]
[1750117260195,26.0,152.62,152.59,6.98]
[1750117260401,35.93777761,152.6,152.59,13.5335094]
[1750117260616,36.22210075,152.6,152.59,6.98]
[1750117261022,29.01391118,152.6,152.59,6.98]
[1750117262125,0.28432314,152.55,152.51,6.98]
[1750117262327,35.93777761,152.52,152.51,13.53694708]
[1750117262525,64.69777761,152.52,152.51,13.53694708]
[1750117262822,64.98210075,152.52,152.51,6.98]
[1750117262998,83.77391118,152.52,152.51,6.98]
[1750117263325,26.0,152.48,152.45,13.49952771]
[1750117263527,28.76,152.47,152.45,13.49952771]
[1750117263899,38.69777761,152.47,152.45,13.49952771]
[1750117264313,9.93777761,152.46,152.45,13.49952771]
[1750117264501,9.93777761,152.46,152.45,6.94]
[1750117264705,7.6863,152.47,152.45,13.49952771]
[1750117265026,64.69777761,152.46,152.45,13.49952771]
[1750117265322,64.69777761,152.46,152.45,6.94]
[1750117265707,64.98210075,152.46,152.45,6.94]
[1750117265916,64.98210075,152.46,152.45,13.49952771]
[1750117266101,45.07613357,152.45,152.44,50.86202367]
[1750117266303,29.01391118,152.45,152.44,50.86202367]
[1750117266517,9.93777761,152.47,152.44,57.42198168]
[1750117266709,28.76,152.46,152.45,9.93777761]
[1750117266917,28.76,152.48,152.45,15.38151553]
[1750117267930,28.76,152.48,152.44,73.82187672]
[1750117267931,28.76,152.48,152.44,122.00318233]
[1750117268118,28.76,152.48,152.44,89.20339225]
[1750117268517,15.38151553,152.47,152.44,73.82187672]
[1750117268830,15.38151553,152.45,152.44,57.42198168]
[1750117269414,34.31548753,152.45,152.44,50.86202367]
[1750117269780,26.0,152.42,152.4,6.5616281]
[1750117269912,44.14151553,152.41,152.4,6.5616281]
[1750117270536,44.14151553,152.41,152.39,6.56211037]
[1750117270832,15.38151553,152.4,152.39,6.56211037]
[1750117271027,28.76,152.41,152.39,6.56211037]
[1750117271611,44.14151553,152.41,152.39,6.56211037]
[1750117272215,28.76,152.41,152.39,6.56211037]
[1750117272413,44.14151553,152.41,152.39,6.56211037]
[1750117272616,28.76,152.41,152.39,6.56211037]
[1750117272838,28.76,152.41,152.39,21.9436259]
[1750117273142,28.76,152.43,152.4,15.38151553]
[1750117273538,15.38151553,152.45,152.4,15.38151553]
[1750117273749,15.38151553,152.47,152.42,15.38151553]
[1750117273922,28.76,152.46,152.44,15.38151553]
[1750117274127,28.76,152.46,152.43,15.38151553]
[1750117274728,28.76,152.46,152.44,6.55995801]
[1750117275058,41.38151553,152.45,152.44,6.55995801]
[1750117275746,41.38151553,152.45,152.4,6.56167979]
[1750117275953,44.14151553,152.44,152.4,6.56167979]
[1750117276646,44.14151553,152.44,152.39,22.9667638]
[1750117276838,15.38151553,152.43,152.39,22.9667638]
[1750117277048,28.76,152.42,152.39,22.9667638]
[1750117277300,15.38151553,152.41,152.39,6.56211037]
[1750117277556,44.14151553,152.4,152.39,6.56211037]
[1750117277859,44.14151553,152.4,152.38,13.50245656]
[1750117278031,60.4576491,152.39,152.38,6.94]
[1750117280152,26.0,152.35,152.34,6.56420193]
[1750117280449,54.76,152.35,152.34,6.56420193]
[1750117280652,54.76,152.35,152.31,6.56555708]
[1750117280860,15.38151553,152.33,152.3,22.98032313]
[1750117281062,28.76,152.32,152.3,22.98032313]
[1750117281240,6.08846476,152.48,152.31,6.5419]
[1750117281429,15.38151553,152.43,152.38,15.38151553]
[1750117281628,44.14151553,152.45,152.4,15.38151553]
[1750117281832,28.76,152.44,152.41,15.38151553]
[1750117282288,28.76,152.44,152.4,6.96]
[1750117282435,70.14151553,152.44,152.4,6.96]
[1750117282765,41.38151553,152.41,152.39,6.56211037]
[1750117282960,41.38151553,152.4,152.39,6.56211037]
[1750117283471,70.14151553,152.4,152.37,6.56297171]
[1750117283635,15.38151553,152.39,152.37,6.56297171]
[1750117284752,44.14151553,152.38,152.3,88.64084043]
[1750117284957,15.38151553,152.35,152.31,6.96]
[1750117285136,28.76,152.36,152.31,6.96]
[1750117285444,15.38151553,152.35,152.31,6.96]
[1750117285639,15.38151553,152.34,152.31,6.96]
[1750117285849,15.38151553,152.35,152.31,6.96]
[1750117286253,28.76,152.36,152.31,6.96]
[1750117286862,28.76,152.38,152.36,6.56340246]
[1750117287356,26.0,152.39,152.36,6.56340246]
[1750117287860,41.38151553,152.39,152.36,6.56340246]
[1750117288037,28.74,152.4,152.36,6.56340246]
[1750117288038,15.38151553,152.37,152.36,6.56340246]
[1750117288549,26.0,152.37,152.31,16.41371501]
[1750117288752,26.0,152.37,152.31,23.37371501]
[1750117288753,28.74,152.36,152.31,23.37371501]
[1750117288954,28.74,152.36,152.34,6.56426414]
[1750117289372,28.74,152.36,152.34,21.94577967]
[1750117289769,28.74,152.36,152.34,22.9749245]
[1750117289960,28.74,152.36,152.34,6.56426414]
[1750117291053,28.74,152.36,152.32,38.3594567]
[1750117291274,28.74,152.36,152.33,15.38151553]
[1750117291666,44.12151553,152.36,152.32,22.97794117]
[1750117291980,28.74,152.36,152.33,15.38151553]
[1750117292304,54.74,152.36,152.33,15.38151553]
[1750117292860,54.74,152.36,152.32,22.97794117]
[1750117292861,54.74,152.36,152.32,38.3594567]
[1750117293360,54.74,152.36,152.33,15.38151553]
[1750117293566,28.74,152.38,152.35,15.38151553]
[1750117294070,41.38151553,152.36,152.32,22.97794117]
[1750117294271,70.12151553,152.36,152.32,22.97794117]
[1750117294880,15.38151553,152.35,152.32,6.56512605]
[1750117295685,15.38151553,152.35,152.31,13.48552021]
[1750117295686,15.38151553,152.33,152.31,13.48552021]
[1750117295859,15.38151553,152.32,152.31,6.92]
[1750117296461,26.0,152.33,152.31,6.92]
[1750117296683,15.38151553,152.32,152.31,6.92]
[1750117296882,15.38151553,152.32,152.3,6.56588482]
[1750117297078,15.38151553,152.31,152.29,6.56628198]
[1750117297569,15.38151553,152.3,152.29,6.56628198]
[1750117297956,15.38151553,152.31,152.29,6.56628198]
[1750117298467,28.74,152.31,152.29,6.56628198]
[1750117299373,28.74,152.32,152.29,6.56628198]
[1750117299582,44.12151553,152.32,152.29,6.56628198]
[1750117300657,26.0,152.33,152.29,38.36384583]
[1750117300874,28.74,152.32,152.29,38.36384583]
[1750117301288,28.74,152.32,152.29,22.9823303]
[1750117301585,41.38151553,152.33,152.29,22.9823303]
[1750117301783,28.74,152.32,152.29,22.9823303]
[1750117302361,28.74,152.32,152.3,15.38151553]
[1750117302872,28.74,152.32,152.3,9.95859226]
[1750117303578,28.74,152.32,152.29,32.94092256]
[1750117304772,7.9688,152.39,152.29,55.81442695]
[1750117305087,26.0,152.35,152.29,22.9823303]
[1750117305390,26.0,152.35,152.29,32.94092256]
[1750117305391,9.95859226,152.33,152.29,32.94092256]
[1750117305566,9.95859226,152.32,152.29,22.9823303]
[1750117306573,38.69859226,152.33,152.29,22.9823303]
[1750117306888,28.74,152.33,152.29,22.9823303]
[1750117307976,9.95859226,152.31,152.29,6.56628198]
[1750117309702,38.69859226,152.33,152.29,6.56628198]
[1750117309899,28.74,152.33,152.29,16.52487424]
[1750117310067,28.74,152.33,152.29,6.56628198]
[1750117310273,9.95859226,152.31,152.29,6.56628198]
[1750117310472,28.72,152.3,152.29,6.56628198]
[1750117310910,28.72,152.3,152.28,6.92]
[1750117310911,38.67859226,152.3,152.28,6.92]
[1750117311195,9.95859226,152.29,152.28,6.92]
[1750117311788,0.28432314,152.29,152.28,6.92]
[1750117312105,9.95859226,152.29,152.28,6.92]
[1750117312276,9.95859226,152.29,152.28,13.48685053]
[1750117312669,10.2429154,152.29,152.28,6.92]
[1750117312903,9.95859226,152.29,152.28,13.48685053]
[1750117313198,9.95859226,152.29,152.28,6.92]
[1750117313414,9.95859226,152.29,152.28,13.48685053]
[1750117314782,28.72,152.3,152.28,13.48685053]
[1750117314980,9.95859226,152.29,152.28,13.48685053]
[1750117316185,38.67859226,152.3,152.28,13.48685053]
[1750117316388,9.95859226,152.29,152.23,29.91120291]
[1750117316701,9.95859226,152.26,152.23,29.91120291]
[1750117316887,28.72,152.25,152.23,29.91120291]
[1750117317703,38.67859226,152.25,152.23,29.91120291]
[1750117318203,28.72,152.25,152.23,29.91120291]
[1750117319389,28.72,152.25,152.2,23.34512096]
[1750117319390,9.95859226,152.24,152.2,23.34512096]
[1750117319705,9.95859226,152.22,152.2,23.34512096]
[1750117319905,28.72,152.22,152.2,29.91542319]
[1750117320809,9.95859226,152.21,152.2,6.92]
[1750117321388,26.0,152.18,152.15,41.5910392]
[1750117321704,9.95859226,152.16,152.15,6.57211478]
[1750117321905,28.72,152.17,152.13,6.92]
[1750117322276,9.95859226,152.15,152.13,6.92]
[1750117322479,28.72,152.14,152.13,6.92]
[1750117322907,159.1,152.27,152.13,16.87859226]
[1750117322908,9.95859226,152.2,152.13,16.87859226]
[1750117323090,7.9565,152.24,152.19,9.95859226]
[1750117323290,7.9565,152.24,152.2,6.92]
[1750117323490,0.14216157,152.21,152.2,6.92]
[1750117323689,9.95859226,152.21,152.2,6.92]
[1750117323890,9.95859226,152.21,152.2,13.49030223]
[1750117324292,38.65859226,152.21,152.2,6.92]
[1750117324590,57.73472583,152.21,152.2,6.92]
[1750117325190,26.0,152.17,152.1,16.43584298]
[1750117325392,28.72,152.16,152.11,6.9]
[1750117325911,9.95859226,152.15,152.12,23.00815144]
[1750117326202,38.67859226,152.16,152.12,23.00815144]
[1750117326595,38.67859226,152.16,152.12,32.9667437]
[1750117326913,28.72,152.16,152.13,9.95859226]
[1750117327107,28.72,152.16,152.12,23.00815144]
[1750117327401,28.72,152.16,152.13,9.95859226]
[1750117327606,28.72,152.16,152.12,23.00815144]
[1750117328292,7.6563,152.32,152.16,18.64964886]
[1750117328492,7.6563,152.32,152.25,9.95859226]
[1750117328702,7.6563,152.32,152.28,9.95859226]
[1750117328891,1.5241,152.32,152.29,9.95859226]
[1750117329493,28.7,152.33,152.29,9.95859226]
[1750117329494,38.65859226,152.34,152.29,9.95859226]
[1750117329697,28.7,152.34,152.29,9.95859226]
[1750117329892,38.65859226,152.34,152.29,9.95859226]
[1750117330093,9.95859226,152.35,152.31,9.95859226]
[1750117330383,28.7,152.34,152.31,9.95859226]
[1750117330603,28.7,152.35,152.31,9.95859226]
[1750117330984,38.65859226,152.35,152.3,26.37356271]
[1750117331384,9.95859226,152.35,152.3,26.37356271]
[1750117331582,28.7,152.34,152.31,9.95859226]
[1750117331798,28.7,152.34,152.32,9.95859226]
[1750117332005,28.7,152.35,152.32,9.95859226]
[1750117332215,28.7,152.35,152.33,6.56469506]
[1750117332606,28.7,152.35,152.33,16.52328732]
[1750117332809,28.7,152.35,152.33,6.56469506]
[1750117333919,38.65859226,152.35,152.33,6.56469506]